bitfinex/quotes_ETHUSD_20250210
["timestamp","ask_amount","ask_price","bid_price","bid_amount"]
[1739145759771,3.79333,2636.2,2635.2,5.464]
[1739145759772,0.74905201,2636.6,2635.8,0.1]
[1739145759926,3.7937,2636.0,2635.8,0.1]
[1739145760127,3.79377,2635.9,2635.8,0.1]
[1739145760942,7.58742,2636.0,2635.8,0.1]
[1739145761142,3.79377,2635.9,2635.8,0.1]
[1739145761338,3.7937,2636.0,2635.8,0.1]
[1739145761653,3.79289,2636.6,2636.2,0.1]
[1739145761831,3.7929,2636.5,2636.4,0.1]
[1739145762686,3.7929,2636.5,2635.9,2.0]
[1739145762687,0.7817,2636.4,2635.5,0.1]
[1739145762909,3.79449,2635.4,2635.3,0.1]
[1739145763101,3.79449,2635.4,2635.1,0.7789]
[1739145763287,3.79449,2635.4,2635.3,0.1]
[1739145763650,3.7956,2634.7,2634.6,0.1]
[1739145763954,3.79557,2634.7,2634.6,0.1]
[1739145764307,3.79528,2634.9,2634.6,0.1]
[1739145764600,3.79517,2635.0,2634.6,0.1]
[1739145764898,3.79531,2634.9,2634.6,0.1]
[1739145765111,3.79517,2635.0,2634.8,0.1]
[1739145765409,3.79485,2635.2,2635.0,0.1]
[1739145765971,3.79388,2635.9,2635.4,0.1]
[1739145766172,3.79335,2636.2,2635.9,0.1]
[1739145766476,3.79333,2636.2,2636.1,0.1]
[1739145766862,3.79405,2635.7,2635.6,0.1]
[1739145767081,3.80606926,2636.2,2635.6,0.1]
[1739145767082,3.79392,2635.8,2635.6,0.1]
[1739145767288,3.79313,2636.4,2636.2,0.1]
[1739145767493,3.79319,2636.3,2636.2,0.1]
[1739145767699,3.79313,2636.4,2636.2,0.1]
[1739145767901,0.76663003,2637.1,2636.4,0.1]
[1739145768105,3.79261,2636.7,2636.6,0.1]
[1739145769225,3.79261,2636.8,2636.6,0.1]
[1739145769387,3.79234,2636.9,2636.8,0.1]
[1739145770622,3.74234,2636.9,2636.8,0.1]
[1739145771076,3.79233,2636.9,2636.8,0.1]
[1739145771718,7.58392,2637.2,2637.0,0.1]
[1739145772022,3.79175,2637.3,2637.2,0.1]
[1739145772251,3.79175,2637.3,2637.0,0.1]
[1739145772520,3.79204,2637.1,2637.0,0.1]
[1739145773206,3.79261,2636.7,2636.6,0.1]
[1739145773803,3.79291,2636.5,2636.3,0.1]
[1739145773973,3.79305,2636.4,2636.3,0.1]
[1739145775004,3.8404645,2636.4,2636.3,0.1]
[1739145775209,3.79333,2636.2,2636.1,0.1]
[1739145775820,5.41635965,2636.2,2635.8,0.1]
[1739145776149,3.79377,2635.9,2635.8,0.1]
[1739145776835,3.79363,2636.0,2635.8,0.1]
[1739145777026,3.79342,2636.2,2636.0,0.1]
[1739145777222,3.79312,2636.4,2636.3,0.1]
[1739145777529,3.79305,2636.4,2636.3,0.1]
[1739145777733,3.79305,2636.4,2636.1,0.1]
[1739145778047,3.79305,2636.4,2635.1,0.7862]
[1739145778048,0.04741716,2636.3,2635.1,0.7862]
[1739145778347,3.79435,2635.5,2635.4,0.1]
[1739145778535,3.79416,2635.7,2635.4,0.1]
[1739145778727,7.58831,2635.7,2635.4,0.1]
[1739145778936,3.79414,2635.7,2635.6,0.1]
[1739145779111,3.79434,2635.5,2635.4,0.1]
[1739145779722,3.79391,2635.8,2635.1,0.7862]
[1739145779943,3.79449,2635.4,2635.3,0.1]
[1739145781622,3.79436,2635.5,2635.3,0.1]
[1739145782216,3.84192089,2635.4,2635.3,0.1]
[1739145782415,3.84192552,2635.4,2635.3,0.1]
[1739145782616,4.55811855,2635.4,2635.3,0.1]
[1739145782852,3.79449,2635.4,2635.3,0.1]
[1739145783154,3.79535,2634.8,2634.7,0.1]
[1739145784867,3.7947,2635.3,2635.2,0.1]
[1739145785157,3.79365,2636.0,2634.7,4.5816]
[1739145785158,0.8169,2636.0,2635.6,0.1]
[1739145785352,3.79391,2635.8,2635.6,0.1]
[1739145785558,3.79405,2635.7,2635.6,0.1]
[1739145785956,3.79377,2635.9,2635.8,0.1]
[1739145786154,3.79348,2636.1,2636.0,0.1]
[1739145786645,3.79335,2636.2,2636.0,0.1]
[1739145786953,3.79335,2636.2,2635.7,5.79405]
[1739145786954,3.79309,2636.4,2636.3,0.1]
[1739145787152,3.79282,2636.6,2636.5,0.1]
[1739145787524,3.79262,2636.7,2636.5,0.1]
[1739145787976,3.79241,2636.9,2636.8,0.1]
[1739145788118,3.79209,2637.1,2637.0,0.1]
[1739145788451,3.7919,2637.2,2636.8,0.1]
[1739145788651,3.79233,2636.9,2636.8,0.1]
[1739145789023,3.79213,2637.1,2637.0,0.1]
[1739145789425,3.79233,2636.9,2636.8,0.1]
[1739145789627,3.79261,2636.7,2636.6,0.1]
[1739145789869,3.79241,2636.9,2636.8,0.1]
[1739145790776,6.79241,2636.9,2636.8,0.1]
[1739145790957,3.0,2636.8,2636.2,0.1]
[1739145791163,3.79305,2636.4,2636.2,0.1]
[1739145791327,3.79282,2636.6,2635.5,2.7876]
[1739145791328,3.79282,2636.6,2636.5,0.1]
[1739145791529,3.79245,2636.9,2636.7,0.1]
[1739145791938,3.79247,2636.8,2636.7,0.1]
[1739145792456,3.79245,2636.9,2636.7,0.1]
[1739145792659,3.79302,2636.5,2636.4,0.1]
[1739145792971,3.7929,2636.5,2636.4,0.1]
[1739145793745,3.79319,2636.3,2636.2,0.1]
[1739145794147,3.79348,2636.1,2636.0,0.1]
[1739145794782,3.79363,2636.0,2635.9,0.1]
[1739145795431,3.7956,2636.8,2636.2,0.1]
[1739145795631,3.79282,2636.6,2636.4,0.1]
[1739145795876,3.79229,2637.0,2636.9,0.1]
[1739145797067,3.79205,2637.1,2636.9,0.1]
[1739145797704,3.0,2637.0,2636.6,0.1]
[1739145798002,3.79247,2636.8,2636.7,0.1]
[1739145798205,3.83901769,2637.4,2637.0,0.1]
[1739145798356,3.79204,2637.1,2637.0,0.1]
[1739145799056,3.7919,2637.2,2637.0,0.1]
[1739145799370,3.78992,2638.6,2637.6,0.1]
[1739145799573,3.79075,2638.0,2637.9,0.1]
[1739145799772,3.79075,2638.0,2637.6,0.1]
[1739145799773,3.79118,2637.7,2637.6,0.1]
[1739145799978,3.79161,2637.4,2637.3,0.1]
[1739145800179,3.79186,2637.3,2637.2,0.1]
[1739145800368,3.79162,2637.4,2637.2,0.1]
[1739145800755,3.79175,2637.3,2637.2,0.1]
[1739145800954,0.2,2640.3,2639.3,0.1]
[1739145801178,3.78846,2639.6,2639.5,0.1]
[1739145801373,4.167306,2639.6,2639.5,0.1]
[1739145801774,3.78873,2639.4,2639.3,0.1]
[1739145804294,3.82513338,2639.4,2639.3,0.1]
[1739145805007,0.03640338,2639.4,2639.3,0.1]
[1739145805379,3.82513338,2639.4,2639.3,0.1]
[1739145806097,4.92437732,2639.4,2639.3,0.1]
[1739145806305,7.92437732,2639.4,2639.3,0.1]
[1739145806809,3.78902,2639.2,2639.1,0.1]
[1739145807181,3.82723019,2639.2,2639.1,0.1]
[1739145808412,0.03821019,2639.2,2639.1,0.1]
[1739145808802,3.78851,2639.6,2639.1,0.1]
[1739145809004,0.03831714,2639.2,2639.1,0.1]
[1739145809595,3.78874,2639.4,2639.1,0.1]
[1739145809792,3.78824,2639.8,2639.5,0.1]
[1739145810025,3.78824,2639.8,2639.7,0.1]
[1739145810188,3.78789,2640.0,2639.9,0.1]
[1739145810583,0.80490492,2640.0,2639.7,0.1]
[1739145810816,3.78816,2639.8,2639.7,0.1]
[1739145811112,3.78891,2639.3,2639.2,0.1]
[1739145811479,3.82748111,2639.3,2639.2,0.1]
[1739145811680,3.82745111,2639.3,2639.2,0.1]
[1739145811877,4.58907122,2639.3,2639.2,0.1]
[1739145812482,4.58907122,2639.3,2638.4,0.828]
[1739145812483,0.84755811,2639.3,2638.4,0.828]
[1739145812627,3.78931,2639.0,2638.9,0.1]
[1739145812956,0.0384575,2639.0,2638.9,0.1]
[1739145813156,3.8277675,2639.0,2638.9,0.1]
[1739145813458,3.82750014,2639.0,2638.9,0.1]
[1739145814058,3.87486996,2639.0,2638.8,0.1]
[1739145814359,3.78945,2638.9,2638.8,0.1]
[1739145814657,3.79006,2638.5,2638.4,0.1]
[1739145814831,6.78945,2638.9,2638.8,0.1]
[1739145815034,3.78945,2638.9,2638.8,0.1]
[1739145815432,3.78945,2638.9,2638.3,3.79024]
[1739145815433,3.7891,2639.2,2639.1,0.1]
[1739145816172,3.78848,2639.6,2639.5,0.1]
[1739145816379,3.78832,2639.7,2639.5,0.1]
[1739145816747,7.5767,2639.7,2639.5,0.1]
[1739145816948,3.78832,2639.7,2639.5,0.1]
[1739145817163,0.04735628,2640.0,2639.8,0.1]
[1739145817349,3.78802,2639.9,2639.8,0.1]
[1739145817737,3.78859,2639.5,2639.4,0.1]
[1739145818061,3.83595163,2639.5,2639.4,0.1]
[1739145818237,3.78888,2639.3,2639.2,0.1]
[1739145818437,3.78848,2639.6,2639.5,0.1]
[1739145818838,0.8008,2640.1,2639.8,0.1]
[1739145819037,3.78802,2639.9,2639.8,0.1]
[1739145819247,3.78764,2640.2,2639.6,0.1]
[1739145819449,3.7883,2639.7,2639.6,0.1]
[1739145819674,3.78859,2639.5,2639.4,0.1]
[1739145819902,3.78883,2639.4,2639.3,0.1]
[1739145820783,3.78931,2639.0,2638.9,0.8008]
[1739145820968,3.78918,2639.1,2638.9,0.1]
[1739145821154,0.8008,2639.7,2639.4,0.1]
[1739145821155,3.78859,2639.5,2639.4,0.1]
[1739145821470,3.0,2639.4,2638.6,0.8008]
[1739145821643,3.0,2639.1,2638.5,0.1]
[1739145821842,3.78988,2638.6,2638.5,0.1]
[1739145822771,3.78975,2638.7,2638.5,0.1]
[1739145823076,6.78917,2639.1,2639.0,0.1]
[1739145823439,3.78945,2638.9,2638.8,0.1]
[1739145823648,4.8947002,2638.9,2638.8,0.1]
[1739145823853,3.78945,2638.9,2638.8,0.1]
[1739145826048,3.82713873,2638.9,2638.8,0.1]
[1739145826584,3.78974,2638.7,2638.6,0.1]
[1739145826781,3.83711626,2638.7,2638.6,0.1]
[1739145826948,3.78974,2638.7,2638.6,0.1]
[1739145827282,3.82742873,2638.7,2638.6,0.1]
[1739145827460,0.03768873,2638.7,2638.6,0.1]
[1739145827661,3.78974,2638.7,2638.6,0.1]
[1739145827858,3.8274956,2638.7,2638.6,0.1]
[1739145828065,3.8748695,2638.7,2638.6,0.1]
[1739145828291,3.8274956,2638.7,2638.6,0.1]
[1739145829152,0.0377556,2638.7,2638.6,0.1]
[1739145829367,0.0377556,2638.7,2638.6,3.88988]
[1739145829600,3.78912,2639.2,2638.7,3.78967]
[1739145830077,3.78912,2639.2,2638.6,0.9008]
[1739145830078,3.78902,2639.2,2639.1,0.1]
[1739145830657,0.59436977,2640.6,2640.4,0.1]
[1739145830856,0.59436977,2640.6,2640.5,3.78716]
[1739145831078,0.59436977,2640.6,2640.5,4.59696]
[1739145831691,0.59436977,2640.6,2640.5,2.8098]
[1739145831877,3.78661,2640.9,2640.8,0.1]
[1739145832077,3.78701,2640.6,2640.5,0.8098]
[1739145833395,3.78601,2641.3,2640.5,0.8098]
[1739145833555,3.78644,2641.0,2640.5,0.8098]
[1739145834059,3.7866,2640.9,2640.5,1.71686761]
[1739145834258,3.78668,2640.9,2640.5,1.71686761]
[1739145834673,3.78691,2640.7,2640.5,1.71686761]
[1739145834869,3.78668,2640.9,2640.5,1.71686761]
[1739145835091,3.78698,2640.7,2640.5,1.71686761]
[1739145835482,0.04084861,2640.6,2640.5,1.71686761]
[1739145835688,0.04084861,2640.6,2640.5,0.8098]
[1739145836261,3.78636,2641.1,2640.5,4.59696]
[1739145836481,0.04075516,2641.0,2640.9,2.0]
[1739145836686,3.78553,2641.7,2640.9,5.78658]
[1739145836882,0.04100211,2641.6,2641.3,3.78601]
[1739145837097,0.8057,2642.2,2641.4,3.7858]
[1739145837264,0.8057,2642.2,2641.2,2.0]
[1739145837265,3.78493,2642.1,2641.5,4.5955]
[1739145837505,3.78504,2642.0,2641.5,4.5955]
[1739145838049,3.1475722,2642.7,2641.5,1.1098]
[1739145838249,3.8265324,2641.9,2641.5,0.8098]
[1739145838541,0.0413824,2641.8,2641.5,0.8098]
[1739145839032,3.7264324,2642.0,2641.5,0.8098]
[1739145839255,0.03990446,2641.7,2641.6,5.78558]
[1739145839393,3.68438,2642.5,2641.8,3.78518]
[1739145839593,3.78449,2642.4,2641.8,3.78518]
[1739145839908,0.1475722,2642.7,2642.1,0.8098]
[1739145839909,0.03997783,2642.3,2642.1,0.8098]
[1739145840111,0.03855005,2642.3,2642.1,0.8098]
[1739145840312,0.1475722,2642.7,2642.5,3.78428]
[1739145840559,0.1475722,2642.7,2642.6,4.59395]
[1739145840898,0.1475722,2642.7,2642.6,0.8098]
[1739145841100,0.1475722,2642.7,2641.8,0.8098]
[1739145841101,3.78515,2641.9,2641.8,0.8098]
[1739145841346,0.03849066,2641.9,2641.8,0.8098]
[1739145841515,0.03849066,2641.9,2641.8,4.59509]
[1739145841717,3.78486,2642.1,2641.8,0.8098]
[1739145841912,3.78455,2642.4,2641.8,0.8098]
[1739145842152,0.03839059,2642.0,2641.8,4.59503]
[1739145842357,3.78422,2642.6,2641.9,5.78515]
[1739145842582,3.78446,2642.4,2641.9,2.0]
[1739145842778,3.78481,2642.2,2641.8,0.8098]
[1739145843099,3.78455,2642.4,2641.8,0.8098]
[1739145843274,3.78455,2642.4,2641.8,4.59509]
[1739145843476,3.9316822,2642.7,2641.9,2.0]
[1739145843664,0.1475722,2642.7,2642.5,0.8098]
[1739145844060,0.1475722,2642.7,2642.6,3.78415]
[1739145844262,0.1475722,2642.7,2642.6,10.5766398]
[1739145844778,0.1475722,2642.7,2642.6,4.7924898]
[1739145844954,0.1475722,2642.7,2642.6,6.7924898]
[1739145845339,0.1475722,2642.7,2642.6,10.5766398]
[1739145845549,0.1475722,2642.7,2642.6,6.7924898]
[1739145845755,0.1475722,2642.7,2642.6,10.5766398]
[1739145846180,0.1475722,2642.7,2642.6,14.8919398]
[1739145846744,0.1475722,2642.7,2642.6,10.5577898]
[1739145847053,0.1475722,2642.7,2642.6,11.3419398]
[1739145847258,0.1475722,2642.7,2642.6,14.8919398]
[1739145847669,0.1475722,2642.7,2642.6,50.44228984]
[1739145848468,2.2e-06,2642.7,2642.6,15.44228984]
[1739145848814,0.005,2643.4,2642.6,15.44228984]
[1739145848815,0.005,2643.4,2643.3,7.54844]
[1739145848944,0.005,2643.4,2643.3,12.8909298]
[1739145849152,0.01176082,2644.2,2644.1,0.7437]
[1739145849445,0.05183884,2644.2,2644.1,9.3181898]
[1739145849651,0.01176082,2644.2,2644.1,9.3181898]
[1739145849885,0.01176082,2644.2,2644.1,5.5361898]
[1739145850187,0.01176082,2644.2,2644.1,4.5257]
[1739145850344,0.1475722,2645.4,2644.7,2.7653]
[1739145850659,0.1475722,2645.4,2645.2,4.7924898]
[1739145850855,0.1475722,2645.4,2644.7,2.7653]
[1739145850856,3.78028,2645.3,2644.8,4.7924898]
[1739145851083,3.78068,2645.1,2644.4,4.7924898]
[1739145851394,3.78068,2645.1,2644.1,2.0]
[1739145851395,3.78131,2644.6,2644.1,2.0]
[1739145851748,0.1475722,2645.4,2645.1,5.78046]
[1739145852081,0.1475722,2645.4,2645.3,4.54558]
[1739145852288,0.1475722,2645.4,2645.3,5.09558]
[1739145852453,0.1475722,2645.4,2645.3,8.87758]
[1739145852649,0.1475722,2645.4,2645.3,11.87758]
[1739145852850,2.2e-06,2645.4,2645.3,43.87758]
[1739145853445,2.2e-06,2645.4,2645.3,8.32758]
[1739145853683,2.2e-06,2645.4,2645.3,4.54558]
[1739145853891,2.2e-06,2645.4,2645.3,0.7653]
[1739145854194,2.2e-06,2645.4,2645.2,4.7924898]
[1739145855668,2.2e-06,2645.4,2645.0,0.7653]
[1739145855871,2.2e-06,2645.4,2644.4,4.7924898]
[1739145856084,3.78043,2645.2,2644.1,6.5]
[1739145856392,0.7662,2645.3,2644.6,2.0]
[1739145856393,0.03969102,2645.1,2644.6,2.0]
[1739145856592,0.03969102,2645.1,2644.8,3.78099]
[1739145856794,3.7802822,2645.4,2644.8,8.5734798]
[1739145856795,2.2e-06,2645.4,2644.8,8.5734798]
[1739145856979,0.04048414,2645.0,2644.8,4.7924898]
[1739145857166,2.2e-06,2645.4,2645.1,3.78048]
[1739145857367,2.2e-06,2645.4,2645.1,3.7805]
[1739145857570,2.2e-06,2645.4,2645.3,3.78028]
[1739145857978,2.2e-06,2645.4,2645.3,4.54558]
[1739145858398,2.2e-06,2645.4,2645.3,0.7653]
[1739145859792,2.2e-06,2645.4,2645.0,2.7653]
[1739145860192,3.7802122,2645.4,2644.7,2.7653]
[1739145860397,3.78082,2645.0,2644.4,7.5577898]
[1739145860695,3.78095,2644.9,2644.4,7.5577898]
[1739145861199,3.78103,2644.8,2644.4,7.5577898]
[1739145861701,3.78095,2644.9,2644.4,2.7653]
[1739145862399,2.2e-06,2645.4,2644.7,3.78112]
[1739145862565,2.2e-06,2645.4,2644.8,5.78099]
[1739145862763,3.7802222,2645.4,2644.8,5.78099]
[1739145863184,7.56071,2645.3,2644.8,2.0]
[1739145863394,7.56069,2645.3,2644.8,2.0]
[1739145863697,3.78074,2645.0,2644.5,2.0]
[1739145863896,3.78101,2644.8,2644.5,2.0]
[1739145864397,3.82268043,2644.7,2644.4,0.7653]
[1739145864598,0.04145043,2644.7,2644.2,2.0]
[1739145864896,3.78122,2644.7,2644.2,3.78183]
[1739145865056,0.833,2645.3,2644.1,6.54451]
[1739145865262,3.78054,2645.2,2644.4,2.0]
[1739145865586,0.03971714,2645.1,2645.0,6.54331]
[1739145865786,0.03971714,2645.1,2645.0,7.09331]
[1739145866110,2.2e-06,2645.4,2645.3,5.78028]
[1739145866292,2.2e-06,2645.4,2645.3,6.54288]
[1739145866665,0.03909987,2645.4,2645.3,11.3353698]
[1739145866903,2.2e-06,2645.4,2645.3,11.3353698]
[1739145867064,3.7793,2646.0,2645.6,2.0]
[1739145867398,0.03909767,2645.9,2645.6,5.77982]
[1739145867570,3.77866,2646.5,2645.9,3.77933]
[1739145867895,0.03909767,2646.4,2645.9,5.77933]
[1739145868199,3.77887,2646.3,2645.7,3.77961]
[1739145868562,7.55782,2646.3,2645.7,3.77961]
[1739145868763,3.77929,2646.0,2645.6,2.0]
[1739145869181,4.62233777,2646.0,2645.6,2.0]
[1739145869506,3.78032,2645.3,2644.9,0.7626]
[1739145869663,3.78032,2645.3,2644.8,3.78091]
[1739145869863,3.78062,2645.1,2644.7,2.0]
[1739145870101,4.61307,2645.5,2644.7,2.0]
[1739145870399,3.78035,2645.3,2644.7,2.0]
[1739145870599,0.50040467,2645.4,2644.7,2.0]
[1739145870904,0.04725863,2645.4,2644.2,0.7626]
[1739145871105,0.03909767,2645.3,2645.2,4.54303]
[1739145871296,4.61177,2646.4,2645.5,2.0]
[1739145871610,0.03909767,2646.3,2646.1,5.77902]
[1739145871769,0.03909767,2646.3,2646.2,4.5416]
[1739145871971,0.0162804,2646.7,2646.4,2.0]
[1739145872169,4.57217,2646.6,2645.9,2.0]
[1739145872395,3.81752767,2646.6,2646.0,3.77927]
[1739145872594,3.81752767,2646.6,2645.9,5.77932]
[1739145872797,3.81752767,2646.6,2646.0,3.77924]
[1739145873128,3.81764767,2646.6,2645.8,2.0]
[1739145873274,4.38862727,2646.6,2645.8,2.0]
[1739145873614,3.7786,2646.5,2645.9,3.77931]
[1739145873765,4.38862727,2646.6,2645.8,2.0]
[1739145873966,0.7937,2646.1,2645.8,2.0]
[1739145874212,3.77941,2646.0,2645.4,2.0]
[1739145874570,0.03909767,2645.9,2645.4,2.0]
[1739145875127,3.81864767,2645.9,2645.4,2.0]
[1739145875417,3.77968,2645.8,2645.1,3.78056]
[1739145875573,7.55939,2645.8,2645.1,3.78056]
[1739145875775,3.77968,2645.8,2645.1,3.78056]
[1739145876086,0.03909767,2645.7,2645.1,3.78056]
[1739145876282,0.03909767,2645.7,2645.4,5.78009]
[1739145876493,0.7937,2646.1,2645.4,2.0]
[1739145876687,3.77952,2645.9,2645.4,2.0]
[1739145876886,0.7937,2646.1,2645.0,2.8268]
[1739145876887,3.77976,2645.7,2645.0,2.8268]
[1739145877197,0.04021793,2645.8,2645.5,3.77999]
[1739145877385,3.77944,2645.9,2645.4,2.0]
[1739145877582,0.04021793,2645.7,2645.6,3.77986]
[1739145877785,3.77743,2647.3,2645.8,3.77944]
[1739145877999,3.77862,2646.5,2646.0,2.0]
[1739145878196,3.77835,2646.7,2646.0,5.77916]
[1739145878423,7.55678,2646.7,2646.0,5.77916]
[1739145878618,3.77843,2646.6,2646.0,5.77916]
[1739145879020,3.77835,2646.7,2646.2,3.77898]
[1739145879228,3.77835,2646.7,2646.0,9.55834]
[1739145879389,3.77913,2646.2,2645.7,2.7963]
[1739145879911,2.1475722,2648.0,2647.5,4.57344]
[1739145880087,2.1475722,2648.0,2647.6,2.0]
[1739145880283,2.1475722,2648.0,2647.9,3.77657]
[1739145880483,2.1475722,2648.0,2647.9,10.5690598]
[1739145881524,2.1475722,2648.0,2647.5,5.5887898]
[1739145881686,2.1475722,2648.0,2647.4,2.0]
[1739145882018,2.1475722,2648.0,2647.4,5.77718]
[1739145882329,2.1475722,2648.0,2647.9,3.77657]
[1739145882686,2.1475722,2648.0,2647.7,2.0]
[1739145882886,2.1475722,2648.0,2647.7,5.77681]
[1739145883105,0.04203816,2647.9,2647.5,4.7924898]
[1739145883331,2.1475722,2648.0,2647.8,5.77659]
[1739145883626,0.82226477,2647.9,2646.9,9.2963]
[1739145883822,3.77711,2647.6,2646.9,11.07427]
[1739145884029,3.77715,2647.5,2646.9,11.07427]
[1739145884203,0.04206477,2647.5,2647.1,2.0]
[1739145884537,4.5568,2647.9,2647.1,10.5701098]
[1739145884744,0.04206477,2647.8,2647.1,10.5701098]
[1739145884891,3.77688,2647.7,2647.1,10.5701098]
[1739145885402,0.04206477,2647.6,2647.1,6.7924898]
[1739145885587,0.42395925,2647.6,2646.9,0.7963]
[1739145885789,3.7776,2647.2,2646.7,2.0]
[1739145885989,3.77745,2647.3,2646.7,2.0]
[1739145886191,0.82742311,2647.2,2646.5,5.77851]
[1739145886421,3.77783,2647.1,2646.5,5.77851]
[1739145886603,3.77783,2647.1,2646.5,2.0]
[1739145886804,0.7802,2647.2,2646.5,2.0]
[1739145887294,0.04206477,2647.1,2646.5,2.0]
[1739145887489,0.04206477,2647.1,2646.6,3.77841]
[1739145887829,3.77758,2647.2,2646.6,3.77841]
[1739145888006,0.04206477,2647.0,2646.6,3.77841]
[1739145888207,3.77759,2647.2,2646.6,3.77841]
[1739145888401,0.04206477,2646.9,2646.6,3.77841]
[1739145888606,3.77721,2647.5,2646.7,3.77826]
[1739145888925,3.77745,2647.3,2646.7,3.77826]
[1739145889228,0.04206477,2647.2,2646.8,2.0]
[1739145889426,0.04206477,2647.2,2646.9,0.7963]
[1739145889609,4.55722,2647.6,2646.9,0.7963]
[1739145889610,4.55722,2647.6,2646.9,4.57424]
[1739145889807,0.04206477,2647.1,2647.0,3.7778]
[1739145890006,3.7769,2647.7,2646.9,4.5743]
[1739145890194,3.77738,2647.4,2646.8,5.77813]
[1739145890542,0.04721473,2647.9,2646.8,5.77813]
[1739145890543,0.04150579,2647.3,2646.8,5.77813]
[1739145890746,3.77734,2647.4,2647.1,2.0]
[1739145890901,3.77734,2647.4,2646.7,6.7924898]
[1739145891232,0.04150579,2647.3,2646.7,6.7924898]
[1739145891426,3.77753,2647.3,2646.7,10.5707498]
[1739145891634,0.04143922,2647.2,2646.7,10.5707498]
[1739145891996,0.04143922,2647.2,2647.0,2.0]
[1739145892256,0.04143922,2647.2,2647.1,9.3334998]
[1739145892533,2.1475722,2648.0,2647.6,5.77688]
[1739145892731,0.04143922,2647.9,2647.6,5.77688]
[1739145893031,5.9240222,2648.0,2647.5,4.7924898]
[1739145893198,0.0414326,2647.8,2647.3,2.0]
[1739145893397,3.77695,2647.7,2647.1,5.5557898]
[1739145893624,3.81845581,2647.7,2647.1,5.5557898]
[1739145893823,3.81837581,2647.7,2647.2,3.77746]
[1739145894028,3.77724,2647.5,2647.1,0.7633]
[1739145894231,3.77789,2647.0,2646.4,6.5]
[1739145894433,3.77816,2646.8,2646.4,6.5]
[1739145894734,0.04150581,2646.7,2646.5,3.77853]
[1739145894947,0.04150581,2646.7,2646.6,3.77843]
[1739145895100,3.77758,2647.2,2646.6,2.0]
[1739145895300,0.04150581,2646.7,2646.6,2.0]
[1739145895635,3.77758,2647.2,2646.6,5.77843]
[1739145895947,3.77758,2647.2,2646.3,10.2414898]
[1739145895948,0.04150581,2646.7,2646.3,16.0202498]
[1739145896129,0.04150581,2646.6,2646.3,19.7990198]
[1739145896335,0.04150581,2646.6,2646.5,3.77857]
[1739145896631,3.77762,2647.2,2646.6,3.77834]
[1739145896947,3.77787,2647.0,2646.4,3.77859]
[1739145897249,3.77809,2646.9,2646.3,12.2414898]
[1739145897453,3.77786,2647.0,2646.3,12.2414898]
[1739145897733,3.77843,2646.6,2646.3,7.449]
[1739145897909,3.77837,2646.7,2646.3,7.449]
[1739145898109,0.460876,2647.0,2646.3,7.449]
[1739145898422,3.77792,2647.0,2646.3,11.22777]
[1739145898718,3.77804,2646.9,2646.4,3.77868]
[1739145898920,3.77792,2647.0,2646.3,11.22772]
[1739145898921,3.77828,2646.8,2646.3,7.449]
[1739145899122,3.77856,2646.6,2646.3,7.449]
[1739145899306,3.77821,2646.8,2646.3,2.0]
[1739145899732,3.77808,2646.9,2646.3,5.77873]
[1739145899935,0.8309,2647.1,2646.3,5.77873]
[1739145900141,3.77814,2646.8,2646.3,5.77873]
[1739145900440,3.77786,2647.0,2645.9,5.5557898]
[1739145900740,3.77786,2647.0,2645.9,0.7633]
[1739145900741,0.0472371,2646.9,2645.9,0.7633]
[1739145901039,3.77908,2646.2,2645.8,2.0]
[1739145901206,3.77922,2646.1,2645.8,2.0]
[1739145901401,0.04068016,2646.1,2645.5,11.3356998]
[1739145901607,3.77948,2645.9,2645.5,0.7633]
[1739145901805,0.04066684,2646.0,2645.5,0.7633]
[1739145902039,3.77908,2646.2,2645.9,2.0]
[1739145902334,3.77878,2646.4,2645.9,5.77935]
[1739145902535,3.77924,2646.1,2645.6,5.77977]
[1739145903102,3.77822,2646.8,2645.6,5.77977]
[1739145903103,3.77692,2647.7,2646.4,5.7787]
[1739145903334,3.77765,2647.2,2646.5,4.7924898]
[1739145903641,3.77765,2647.2,2646.6,3.7783]
[1739145903838,7.55532,2647.2,2646.6,3.7783]
[1739145904040,4.60803,2647.6,2647.0,3.77778]
[1739145904226,3.77676,2647.8,2647.1,2.0]
[1739145904540,3.7766,2647.9,2647.4,5.7772]
[1739145904835,3.77714,2647.5,2647.0,3.77783]
[1739145905040,3.77714,2647.5,2646.9,6.7924898]
[1739145905202,3.7769,2647.7,2646.9,6.7924898]
[1739145905203,3.77699,2647.7,2646.9,6.7924898]
[1739145905540,3.77715,2647.5,2646.9,14.3482798]
[1739145905736,3.77715,2647.5,2646.9,10.5703698]
[1739145906034,7.55442,2647.5,2646.9,10.5703698]
[1739145906224,3.77715,2647.5,2646.9,10.5703698]
[1739145906437,4.45215722,2647.9,2646.9,6.7924898]
[1739145906753,3.77704,2647.6,2647.2,2.0]
[1739145907350,3.7768,2647.8,2647.2,2.0]
[1739145907566,6.7549922,2648.0,2647.4,3.77719]
[1739145907567,3.77658,2647.9,2647.4,3.77719]
[1739145907858,6.7549922,2648.0,2647.4,3.77727]
[1739145908047,2.1475722,2648.0,2647.6,3.77697]
[1739145908446,2.1475722,2648.0,2647.8,2.0]
[1739145908641,2.1475722,2648.0,2647.6,3.77697]
[1739145908956,3.7773,2647.4,2646.9,5.77792]
[1739145909118,3.77694,2647.7,2647.3,2.0]
[1739145909321,3.77681,2647.8,2647.3,2.0]